fUSD/lending_fUSD_20260622
["ID","MTS","AMOUNT","RATE_DAILY","PERIOD"]
[426050790,1782131521000,-526.09,0.00028493,2]
[426050785,1782131521000,-500.0,0.00028493,2]
[426050789,1782131521000,-986.53,0.00028493,2]
[426050787,1782131521000,-945.27,0.00028493,2]
[426050788,1782131521000,-541.49,0.00028493,2]
[426050792,1782131521000,-500.0,0.00028493,2]
[426050791,1782131521000,-590.33,0.00028493,2]
[426050794,1782131521000,-500.0,0.00028493,2]
[426050799,1782131521000,-644.80425296,0.00028493,2]
[426050797,1782131521000,-500.0,0.00028493,2]
[426050800,1782131521000,-500.0,0.00028493,2]
[426050798,1782131521000,-694.68,0.00028493,2]
[426050736,1782131521000,-600.84,0.00028493,2]
[426050793,1782131521000,-500.0,0.00028493,2]
[426050769,1782131521000,-500.0,0.00028493,2]
[426050795,1782131521000,-500.0,0.00028493,2]
[426050764,1782131521000,-500.0,0.00028493,2]
[426050768,1782131521000,-500.0,0.00028493,2]
[426050741,1782131521000,-500.0,0.00028493,2]
[426050737,1782131521000,-500.0,0.00028493,2]
[426050740,1782131521000,-869.96,0.00028493,2]
[426050738,1782131521000,-500.0,0.00028493,2]
[426050742,1782131521000,-500.0,0.00028493,2]
[426050746,1782131521000,-500.0,0.00028493,2]
[426050749,1782131521000,-500.0,0.00028493,2]
[426050751,1782131521000,-500.0,0.00028493,2]
[426050747,1782131521000,-501.26,0.00028493,2]
[426050756,1782131521000,-500.0,0.00028493,2]
[426050748,1782131521000,-500.0,0.00028493,2]
[426050752,1782131521000,-758.34,0.00028493,2]
[426050755,1782131521000,-500.0,0.00028493,2]
[426050739,1782131521000,-739.67,0.00028493,2]
[426050757,1782131521000,-500.0,0.00028493,2]
[426050758,1782131521000,-500.0,0.00028493,2]
[426050766,1782131521000,-500.0,0.00028493,2]
[426050767,1782131521000,-500.0,0.00028493,2]
[426050765,1782131521000,-500.0,0.00028493,2]
[426050761,1782131521000,-502.2835984,0.00028493,2]
[426050762,1782131521000,-873.39,0.00028493,2]
[426050763,1782131521000,-500.0,0.00028493,2]
[426050771,1782131521000,-1443.16,0.00028493,2]
[426050770,1782131521000,-784.71,0.00028493,2]
[426050760,1782131521000,-500.0,0.00028493,2]
[426050753,1782131521000,-500.0,0.00028493,2]
[426050754,1782131521000,-500.0,0.00028493,2]
[426050759,1782131521000,-940.86,0.00028493,2]
[426050827,1782131522000,-562.61,0.00028493,2]
[426050821,1782131522000,-500.0,0.00028493,2]
[426050831,1782131522000,-500.0,0.00028493,2]
[426050826,1782131522000,-700.09,0.00028493,2]
[426050828,1782131522000,-500.0,0.00028493,2]
[426050829,1782131522000,-500.0,0.00028493,2]
[426050830,1782131522000,-500.0,0.00028493,2]
[426050834,1782131522000,-559.62,0.00028493,2]
[426050833,1782131522000,-739.97,0.00028493,2]
[426050835,1782131522000,-500.0,0.00028493,2]
[426050843,1782131522000,-500.0,0.00028493,2]
[426050838,1782131522000,-500.0,0.00028493,2]
[426050837,1782131522000,-500.0,0.00028493,2]
[426050839,1782131522000,-514.52,0.00028493,2]
[426050841,1782131522000,-500.0,0.00028493,2]
[426050842,1782131522000,-500.0,0.00028493,2]
[426050840,1782131522000,-500.0,0.00028493,2]
[426050846,1782131522000,-500.0,0.00028493,2]
[426050825,1782131522000,-500.0,0.00028493,2]
[426050847,1782131522000,-500.0,0.00028493,2]
[426050836,1782131522000,-500.0,0.00028493,2]
[426050832,1782131522000,-500.0,0.00028493,2]
[426050808,1782131522000,-500.0,0.00028493,2]
[426050823,1782131522000,-151.809928,0.00028493,2]
[426050844,1782131522000,-500.0,0.00028493,2]
[426050806,1782131522000,-500.0,0.00028493,2]
[426050807,1782131522000,-500.0,0.00028493,2]
[426050804,1782131522000,-500.0,0.00028493,2]
[426050801,1782131522000,-500.0,0.00028493,2]
[426050805,1782131522000,-500.0,0.00028493,2]
[426050802,1782131522000,-42785.736487,0.00028493,2]
[426050803,1782131522000,-696.96,0.00028493,2]
[426050809,1782131522000,-846.46,0.00028493,2]
[426050819,1782131522000,-500.0,0.00028493,2]
[426050810,1782131522000,-500.0,0.00028493,2]
[426050811,1782131522000,-500.0,0.00028493,2]
[426050814,1782131522000,-500.0,0.00028493,2]
[426050815,1782131522000,-928.29,0.00028493,2]
[426050812,1782131522000,-500.0,0.00028493,2]
[426050818,1782131522000,-500.0,0.00028493,2]
[426050816,1782131522000,-577.73140896,0.00028493,2]
[426050817,1782131522000,-500.0,0.00028493,2]
[426050813,1782131522000,-500.0,0.00028493,2]
[426050820,1782131522000,-571.32,0.00028493,2]
[426050822,1782131522000,-500.0,0.00028493,2]
[426050824,1782131522000,-500.0,0.00028493,2]
[426050845,1782131522000,-500.0,0.00028493,2]
[426050854,1782131522000,-235.10050302,0.00028493,2]
[426050849,1782131522000,-500.0,0.00028493,2]
[426050874,1782131522000,-520.53314067,0.00028493,2]
[426050877,1782131522000,-500.0,0.00028493,2]
[426050882,1782131522000,-1352.1,0.00028493,2]
[426050878,1782131522000,-503.42556179,0.00028493,2]
[426050879,1782131522000,-500.0,0.00028493,2]
[426050881,1782131522000,-500.0,0.00028493,2]
[426050880,1782131522000,-500.0,0.00028493,2]
[426050883,1782131522000,-827.96,0.00028493,2]
[426050886,1782131522000,-500.0,0.00028493,2]
[426050875,1782131522000,-500.0,0.00028493,2]
[426050889,1782131522000,-500.0,0.00028493,2]
[426050884,1782131522000,-1369.37,0.00028493,2]
[426050885,1782131522000,-500.0,0.00028493,2]
[426050890,1782131522000,-500.0,0.00028493,2]
[426050891,1782131522000,-500.0,0.00028493,2]
[426050892,1782131522000,-500.0,0.00028493,2]
[426050893,1782131522000,-1075.88,0.00028493,2]
[426050895,1782131522000,-806.98,0.00028493,2]
[426050894,1782131522000,-503.95241299,0.00028493,2]
[426050848,1782131522000,-500.0,0.00028493,2]
[426050887,1782131522000,-500.0,0.00028493,2]
[426050876,1782131522000,-558.4,0.00028493,2]
[426050888,1782131522000,-500.0,0.00028493,2]
[426050870,1782131522000,-510.66810877,0.00028493,2]
[426050858,1782131522000,-500.0,0.00028493,2]
[426050873,1782131522000,-816.43,0.00028493,2]
[426050856,1782131522000,-500.0,0.00028493,2]
[426050850,1782131522000,-500.0,0.00028493,2]
[426050859,1782131522000,-500.0,0.00028493,2]
[426050851,1782131522000,-739.97,0.00028493,2]
[426050857,1782131522000,-3267.88,0.00028493,2]
[426050852,1782131522000,-500.0,0.00028493,2]
[426050860,1782131522000,-500.0,0.00028493,2]
[426050855,1782131522000,-500.0,0.00028493,2]
[426050853,1782131522000,-500.0,0.00028493,2]
[426050862,1782131522000,-500.0,0.00028493,2]
[426050861,1782131522000,-500.0,0.00028493,2]
[426050863,1782131522000,-500.0,0.00028493,2]
[426050865,1782131522000,-503.32066165,0.00028493,2]
[426050868,1782131522000,-500.0,0.00028493,2]
[426050864,1782131522000,-507.80682226,0.00028493,2]
[426050867,1782131522000,-500.0,0.00028493,2]
[426050866,1782131522000,-500.0,0.00028493,2]
[426050872,1782131522000,-500.0,0.00028493,2]
[426050871,1782131522000,-500.0,0.00028493,2]
[426050869,1782131522000,-905.07,0.00028493,2]
[426050922,1782131523000,-500.0,0.00028493,2]
[426050934,1782131523000,-500.0,0.00028493,2]
[426050937,1782131523000,-626.46,0.00028493,2]
[426050936,1782131523000,-500.0,0.00028493,2]
[426050930,1782131523000,-500.0,0.00028493,2]
[426050927,1782131523000,-500.0,0.00028493,2]
[426050933,1782131523000,-596.6,0.00028493,2]
[426050929,1782131523000,-307.52760855,0.00028493,2]
[426050926,1782131523000,-500.0,0.00028493,2]
[426050935,1782131523000,-500.0,0.00028493,2]
[426050928,1782131523000,-615.62568868,0.00028493,2]
[426050938,1782131523000,-500.0,0.00028493,2]
[426050947,1782131523000,-500.0,0.00028493,2]
[426050931,1782131523000,-500.0,0.00028493,2]
[426050940,1782131523000,-500.0,0.00028493,2]
[426050939,1782131523000,-500.0,0.00028493,2]
[426050943,1782131523000,-500.0,0.00028493,2]
[426050941,1782131523000,-500.0,0.00028493,2]
[426050942,1782131523000,-500.0,0.00028493,2]
[426050944,1782131523000,-500.0,0.00028493,2]
[426050948,1782131523000,-500.0,0.00028493,2]
[426050945,1782131523000,-502.63737791,0.00028493,2]
[426050946,1782131523000,-500.0,0.00028493,2]
[426050923,1782131523000,-500.0,0.00028493,2]
[426050932,1782131523000,-500.0,0.00028493,2]
[426050920,1782131523000,-500.0,0.00028493,2]
[426050903,1782131523000,-500.0,0.00028493,2]
[426050919,1782131523000,-500.0,0.00028493,2]
[426050901,1782131523000,-194.49900557,0.00028493,2]
[426050897,1782131523000,-500.0,0.00028493,2]
[426050904,1782131523000,-500.0,0.00028493,2]
[426050896,1782131523000,-387.98381122,0.00028493,2]
[426050899,1782131523000,-500.0,0.00028493,2]
[426050902,1782131523000,-504.49520957,0.00028493,2]
[426050898,1782131523000,-500.0,0.00028493,2]
[426050900,1782131523000,-500.0,0.00028493,2]
[426050905,1782131523000,-500.0,0.00028493,2]
[426050910,1782131523000,-500.0,0.00028493,2]
[426050907,1782131523000,-500.0,0.00028493,2]
[426050912,1782131523000,-3183.96,0.00028493,2]
[426050911,1782131523000,-158.0640096,0.00028493,2]
[426050908,1782131523000,-504.25282784,0.00028493,2]
[426050906,1782131523000,-545.12,0.00028493,2]
[426050913,1782131523000,-500.0,0.00028493,2]
[426050909,1782131523000,-500.0,0.00028493,2]
[426050914,1782131523000,-500.0,0.00028493,2]
[426050915,1782131523000,-500.0,0.00028493,2]
[426050917,1782131523000,-519.81,0.00028493,2]
[426050949,1782131523000,-500.0,0.00028493,2]
[426050916,1782131523000,-503.54854396,0.00028493,2]
[426050918,1782131523000,-500.0,0.00028493,2]
[426050924,1782131523000,-500.0,0.00028493,2]
[426050921,1782131523000,-500.0,0.00028493,2]
[426050925,1782131523000,-500.0,0.00028493,2]
[426050954,1782131523000,-500.0,0.00028493,2]
[426050989,1782131523000,-500.0,0.00028493,2]
[426050952,1782131523000,-500.0,0.00028493,2]
[426050982,1782131523000,-175.4113933,0.00028493,2]
[426050983,1782131523000,-593.89,0.00028493,2]
[426050988,1782131523000,-2103.48,0.00028493,2]
[426050987,1782131523000,-500.0,0.00028493,2]
[426050992,1782131523000,-500.0,0.00028493,2]
[426050985,1782131523000,-511.8979644,0.00028493,2]
[426050986,1782131523000,-500.0,0.00028493,2]
[426050984,1782131523000,-500.0,0.00028493,2]
[426050990,1782131523000,-500.0,0.00028493,2]
[426050993,1782131523000,-500.0,0.00028493,2]
[426050995,1782131523000,-502.90427727,0.00028493,2]
[426050978,1782131523000,-500.0,0.00028493,2]
[426050994,1782131523000,-500.0,0.00028493,2]
[426050998,1782131523000,-500.0,0.00028493,2]
[426050997,1782131523000,-500.0,0.00028493,2]
[426050999,1782131523000,-500.0,0.00028493,2]
[426051001,1782131523000,-503.09415228,0.00028493,2]
[426051002,1782131523000,-500.0,0.00028493,2]
[426051000,1782131523000,-510.11594587,0.00028493,2]
[426051004,1782131523000,-500.0,0.00028493,2]
[426051003,1782131523000,-500.0,0.00028493,2]
[426051005,1782131523000,-507.25920405,0.00028493,2]
[426051006,1782131523000,-500.0,0.00028493,2]
[426050951,1782131523000,-512.67,0.00028493,2]
[426050996,1782131523000,-500.0,0.00028493,2]
[426050981,1782131523000,-804.78,0.00028493,2]
[426050991,1782131523000,-500.0,0.00028493,2]
[426050976,1782131523000,-1000.0,0.00028493,2]
[426050980,1782131523000,-500.0,0.00028493,2]
[426050950,1782131523000,-500.0,0.00028493,2]
[426050955,1782131523000,-500.0,0.00028493,2]
[426050956,1782131523000,-500.0,0.00028493,2]
[426050957,1782131523000,-500.0,0.00028493,2]
[426050959,1782131523000,-500.0,0.00028493,2]
[426050958,1782131523000,-542.05,0.00028493,2]
[426050960,1782131523000,-500.0,0.00028493,2]
[426050962,1782131523000,-500.0,0.00028493,2]
[426050964,1782131523000,-2693.07,0.00028493,2]
[426050963,1782131523000,-500.0,0.00028493,2]
[426050967,1782131523000,-861.51,0.00028493,2]
[426050969,1782131523000,-500.0,0.00028493,2]
[426050953,1782131523000,-500.0,0.00028493,2]
[426050974,1782131523000,-500.0,0.00028493,2]
[426050961,1782131523000,-337.27509484,0.00028493,2]
[426050970,1782131523000,-500.0,0.00028493,2]
[426050968,1782131523000,-566.57,0.00028493,2]
[426050966,1782131523000,-500.0,0.00028493,2]
[426050972,1782131523000,-500.0,0.00028493,2]
[426050971,1782131523000,-500.0,0.00028493,2]
[426050973,1782131523000,-500.0,0.00028493,2]
[426050965,1782131523000,-733.03,0.00028493,2]
[426050977,1782131523000,-500.0,0.00028493,2]
[426050975,1782131523000,-500.0,0.00028493,2]
[426050979,1782131523000,-471.25446628,0.00028493,2]
[426051046,1782131524000,-500.0,0.00028493,2]
[426051036,1782131524000,-534.20909335,0.00028493,2]
[426051044,1782131524000,-500.0,0.00028493,2]
[426051047,1782131524000,-500.0,0.00028493,2]
[426051040,1782131524000,-500.0,0.00028493,2]
[426051035,1782131524000,-626.49,0.00028493,2]
[426051050,1782131524000,-500.0,0.00028493,2]
[426051049,1782131524000,-604.11,0.00028493,2]
[426051039,1782131524000,-500.0,0.00028493,2]
[426051037,1782131524000,-585.33,0.00028493,2]
[426051041,1782131524000,-265.16347983,0.00028493,2]
[426051038,1782131524000,-830.91,0.00028493,2]
[426051045,1782131524000,-533.84,0.00028493,2]
[426051053,1782131524000,-1302.85,0.00028493,2]
[426051043,1782131524000,-1326.5,0.00028493,2]
[426051042,1782131524000,-699.61,0.00028493,2]
[426051051,1782131524000,-500.0,0.00028493,2]
[426051054,1782131524000,-553.22,0.00028493,2]
[426051061,1782131524000,-626.57381251,0.00028493,2]
[426051056,1782131524000,-500.0,0.00028493,2]
[426051058,1782131524000,-636.95,0.00028493,2]
[426051052,1782131524000,-500.0,0.00028493,2]
[426051055,1782131524000,-504.95285489,0.00028493,2]
[426051059,1782131524000,-500.0,0.00028493,2]
[426051057,1782131524000,-3549.98,0.00028493,2]
[426051048,1782131524000,-500.0,0.00028493,2]
[426051034,1782131524000,-500.0,0.00028493,2]
[426051011,1782131524000,-500.0,0.00028493,2]
[426051032,1782131524000,-500.0,0.00028493,2]
[426051063,1782131524000,-500.0,0.00028493,2]
[426051009,1782131524000,-500.0,0.00028493,2]
[426051007,1782131524000,-500.0,0.00028493,2]
[426051008,1782131524000,-500.0,0.00028493,2]
[426051013,1782131524000,-500.0,0.00028493,2]
[426051014,1782131524000,-500.0,0.00028493,2]
[426051015,1782131524000,-2746.21,0.00028493,2]
[426051010,1782131524000,-554.28,0.00028493,2]
[426051012,1782131524000,-500.0,0.00028493,2]
[426051017,1782131524000,-500.0,0.00028493,2]
[426051023,1782131524000,-500.0,0.00028493,2]
[426051025,1782131524000,-500.0,0.00028493,2]
[426051016,1782131524000,-785.53,0.00028493,2]
[426051024,1782131524000,-1706.4,0.00028493,2]
[426051026,1782131524000,-397.36,0.00028493,2]
[426051027,1782131524000,-500.0,0.00028493,2]
[426051022,1782131524000,-698.47,0.00028493,2]
[426051019,1782131524000,-500.0,0.00028493,2]
[426051018,1782131524000,-500.0,0.00028493,2]
[426051020,1782131524000,-500.0,0.00028493,2]
[426051021,1782131524000,-500.0,0.00028493,2]
[426051028,1782131524000,-1155.68,0.00028493,2]
[426051031,1782131524000,-500.0,0.00028493,2]
[426051029,1782131524000,-550.66,0.00028493,2]
[426051033,1782131524000,-500.0,0.00028493,2]
[426051030,1782131524000,-505.94731476,0.00028493,2]
[426051060,1782131524000,-500.0,0.00028493,2]
[426051062,1782131524000,-500.0,0.00028493,2]
[426051068,1782131524000,-474.38,0.00028493,2]
[426051098,1782131524000,-500.0,0.00028493,2]
[426051088,1782131524000,-649.49722599,0.00028493,2]
[426051096,1782131524000,-3395.17,0.00028493,2]
[426051109,1782131524000,-1838.48,0.00028493,2]
[426051108,1782131524000,-500.0,0.00028493,2]
[426051099,1782131524000,-500.0,0.00028493,2]
[426051104,1782131524000,-884.6203,0.00028493,2]
[426051102,1782131524000,-1362.17,0.00028493,2]
[426051103,1782131524000,-695.59,0.00028493,2]
[426051101,1782131524000,-500.0,0.00028493,2]
[426051106,1782131524000,-507.29760855,0.00028493,2]
[426051105,1782131524000,-500.0,0.00028493,2]
[426051092,1782131524000,-1496.54,0.00028493,2]
[426051100,1782131524000,-500.0,0.00028493,2]
[426051111,1782131524000,-500.0,0.00028493,2]
[426051114,1782131524000,-507.68595625,0.00028493,2]
[426051110,1782131524000,-500.0,0.00028493,2]
[426051116,1782131524000,-508.55025087,0.00028493,2]
[426051121,1782131524000,-500.0,0.00028493,2]
[426051119,1782131524000,-500.0,0.00028493,2]
[426051115,1782131524000,-711.86,0.00028493,2]
[426051113,1782131524000,-500.0,0.00028493,2]
[426051112,1782131524000,-500.0,0.00028493,2]
[426051120,1782131524000,-500.0,0.00028493,2]
[426051118,1782131524000,-504.85,0.00028493,2]
[426051067,1782131524000,-500.0,0.00028493,2]
[426051107,1782131524000,-500.0,0.00028493,2]
[426051087,1782131524000,-634.96,0.00028493,2]
[426051117,1782131524000,-500.0,0.00028493,2]
[426051097,1782131524000,-500.0,0.00028493,2]
[426051069,1782131524000,-440.94,0.00028493,2]
[426051064,1782131524000,-784.56,0.00028493,2]
[426051070,1782131524000,-1158.24,0.00028493,2]
[426051065,1782131524000,-500.0,0.00028493,2]
[426051071,1782131524000,-449.92,0.00028493,2]
[426051074,1782131524000,-500.0,0.00028493,2]
[426051073,1782131524000,-567.35,0.00028493,2]
[426051091,1782131524000,-500.0,0.00028493,2]
[426051066,1782131524000,-292.85,0.00028493,2]
[426051077,1782131524000,-213.62726128,0.00028493,2]
[426051080,1782131524000,-500.0,0.00028493,2]
[426051075,1782131524000,-500.0,0.00028493,2]
[426051076,1782131524000,-500.0,0.00028493,2]
[426051072,1782131524000,-519.8,0.00028493,2]
[426051086,1782131524000,-500.0,0.00028493,2]
[426051083,1782131524000,-500.0,0.00028493,2]
[426051094,1782131524000,-500.0,0.00028493,2]
[426051093,1782131524000,-500.0,0.00028493,2]
[426051090,1782131524000,-1271.92,0.00028493,2]
[426051095,1782131524000,-500.0,0.00028493,2]
[426051089,1782131524000,-500.0,0.00028493,2]
[426051082,1782131524000,-476.32991248,0.00028493,2]
[426051078,1782131524000,-546.18,0.00028493,2]
[426051081,1782131524000,-500.0,0.00028493,2]
[426051079,1782131524000,-500.0,0.00028493,2]
[426051084,1782131524000,-500.0,0.00028493,2]
[426051085,1782131524000,-500.0,0.00028493,2]
[426051159,1782131525000,-500.0,0.00028493,2]
[426051171,1782131525000,-500.0,0.00028493,2]
[426051169,1782131525000,-500.0,0.00028493,2]
[426051161,1782131525000,-1204.89,0.00028493,2]
[426051148,1782131525000,-202.18530104,0.00028493,2]
[426051156,1782131525000,-500.0,0.00028493,2]
[426051153,1782131525000,-1000.0,0.00028493,2]
[426051155,1782131525000,-847.85,0.00028493,2]
[426051149,1782131525000,-216.26,0.00028493,2]
[426051150,1782131525000,-612.41571384,0.00028493,2]
[426051154,1782131525000,-500.0,0.00028493,2]
[426051165,1782131525000,-500.0,0.00028493,2]
[426051175,1782131525000,-570.0,0.00028493,2]
[426051160,1782131525000,-849.12,0.00028493,2]
[426051170,1782131525000,-500.0,0.00028493,2]
[426051168,1782131525000,-500.0,0.00028493,2]
[426051164,1782131525000,-500.0,0.00028493,2]
[426051167,1782131525000,-8197.77,0.00028493,2]
[426051162,1782131525000,-500.0,0.00028493,2]
[426051166,1782131525000,-2000.0,0.00028493,2]
[426051173,1782131525000,-500.0,0.00028493,2]
[426051174,1782131525000,-3373.56,0.00028493,2]
[426051181,1782131525000,-500.0,0.00028493,2]
[426051172,1782131525000,-687.7,0.00028493,2]
[426051182,1782131525000,-500.0,0.00028493,2]
[426051152,1782131525000,-500.0,0.00028493,2]
[426051163,1782131525000,-500.0,0.00028493,2]
[426051151,1782131525000,-616.23,0.00028493,2]
[426051138,1782131525000,-500.0,0.00028493,2]
[426051158,1782131525000,-5138.93,0.00028493,2]
[426051183,1782131525000,-500.0,0.00028493,2]
[426051122,1782131525000,-500.0,0.00028493,2]
[426051133,1782131525000,-500.0,0.00028493,2]
[426051124,1782131525000,-500.0,0.00028493,2]
[426051132,1782131525000,-500.0,0.00028493,2]
[426051131,1782131525000,-500.0,0.00028493,2]
[426051130,1782131525000,-6186.73,0.00028493,2]
[426051127,1782131525000,-500.0,0.00028493,2]
[426051129,1782131525000,-500.0,0.00028493,2]
[426051123,1782131525000,-500.0,0.00028493,2]
[426051128,1782131525000,-4341.82,0.00028493,2]
[426051126,1782131525000,-500.0,0.00028493,2]
[426051157,1782131525000,-500.0,0.00028493,2]
[426051125,1782131525000,-500.0,0.00028493,2]
[426051142,1782131525000,-161.5,0.00028493,2]
[426051144,1782131525000,-500.0,0.00028493,2]
[426051136,1782131525000,-500.0,0.00028493,2]
[426051140,1782131525000,-483.88,0.00028493,2]
[426051137,1782131525000,-500.0,0.00028493,2]
[426051135,1782131525000,-243.72,0.00028493,2]
[426051141,1782131525000,-2940.44,0.00028493,2]
[426051134,1782131525000,-500.0,0.00028493,2]
[426051145,1782131525000,-537.68525686,0.00028493,2]
[426051143,1782131525000,-361.19,0.00028493,2]
[426051147,1782131525000,-11028.8,0.00028493,2]
[426051146,1782131525000,-500.0,0.00028493,2]
[426051139,1782131525000,-4113.41,0.00028493,2]
[426051178,1782131525000,-500.0,0.00028493,2]
[426051234,1782131525000,-8686.62,0.00028493,2]
[426051179,1782131525000,-500.0,0.00028493,2]
[426051209,1782131525000,-500.0,0.00028493,2]
[426051211,1782131525000,-5976.83,0.00028493,2]
[426051218,1782131525000,-500.0,0.00028493,2]
[426051215,1782131525000,-500.0,0.00028493,2]
[426051210,1782131525000,-6597.51,0.00028493,2]
[426051214,1782131525000,-500.0,0.00028493,2]
[426051216,1782131525000,-500.0,0.00028493,2]
[426051219,1782131525000,-658.07,0.00028493,2]
[426051224,1782131525000,-1002.58,0.00028493,2]
[426051221,1782131525000,-500.0,0.00028493,2]
[426051227,1782131525000,-232.92,0.00028493,2]
[426051220,1782131525000,-909.43,0.00028493,2]
[426051217,1782131525000,-9672.86,0.00028493,2]
[426051225,1782131525000,-500.0,0.00028493,2]
[426051228,1782131525000,-8639.58,0.00028493,2]
[426051226,1782131525000,-379.62,0.00028493,2]
[426051231,1782131525000,-500.0,0.00028493,2]
[426051229,1782131525000,-500.0,0.00028493,2]
[426051230,1782131525000,-4376.06,0.00028493,2]
[426051233,1782131525000,-500.0,0.00028493,2]
[426051232,1782131525000,-500.0,0.00028493,2]
[426051237,1782131525000,-500.0,0.00028493,2]
[426051238,1782131525000,-500.0,0.00028493,2]
[426051235,1782131525000,-500.0,0.00028493,2]
[426051176,1782131525000,-713.2,0.00028493,2]
[426051236,1782131525000,-919.77,0.00028493,2]
[426051222,1782131525000,-500.0,0.00028493,2]
[426051208,1782131525000,-500.0,0.00028493,2]
[426051223,1782131525000,-500.0,0.00028493,2]
[426051212,1782131525000,-500.0,0.00028493,2]
[426051177,1782131525000,-685.72,0.00028493,2]
[426051213,1782131525000,-7004.08,0.00028493,2]
[426051185,1782131525000,-591.59,0.00028493,2]
[426051184,1782131525000,-557.86,0.00028493,2]
[426051190,1782131525000,-1413.15,0.00028493,2]
[426051189,1782131525000,-500.0,0.00028493,2]
[426051187,1782131525000,-500.0,0.00028493,2]
[426051192,1782131525000,-500.0,0.00028493,2]
[426051186,1782131525000,-1010.5,0.00028493,2]
[426051188,1782131525000,-500.0,0.00028493,2]
[426051191,1782131525000,-7121.05,0.00028493,2]
[426051193,1782131525000,-657.57,0.00028493,2]
[426051196,1782131525000,-500.0,0.00028493,2]
[426051180,1782131525000,-500.0,0.00028493,2]
[426051206,1782131525000,-500.0,0.00028493,2]
[426051197,1782131525000,-500.0,0.00028493,2]
[426051199,1782131525000,-500.0,0.00028493,2]
[426051194,1782131525000,-500.0,0.00028493,2]
[426051198,1782131525000,-500.0,0.00028493,2]
[426051201,1782131525000,-500.0,0.00028493,2]
[426051200,1782131525000,-500.0,0.00028493,2]
[426051205,1782131525000,-500.0,0.00028493,2]
[426051195,1782131525000,-500.0,0.00028493,2]
[426051203,1782131525000,-4227.56,0.00028493,2]
[426051204,1782131525000,-1169.7,0.00028493,2]
[426051202,1782131525000,-6843.28,0.00028493,2]
[426051207,1782131525000,-4492.09,0.00028493,2]
[426051283,1782131526000,-777.53,0.00028493,2]
[426051278,1782131526000,-319.24,0.00028493,2]
[426051279,1782131526000,-1281.85,0.00028493,2]
[426051281,1782131526000,-500.0,0.00028493,2]
[426051277,1782131526000,-500.0,0.00028493,2]
[426051270,1782131526000,-513.61,0.00028493,2]
[426051275,1782131526000,-781.2,0.00028493,2]
[426051272,1782131526000,-500.0,0.00028493,2]
[426051273,1782131526000,-500.0,0.00028493,2]
[426051280,1782131526000,-500.0,0.00028493,2]
[426051269,1782131526000,-500.0,0.00028493,2]
[426051271,1782131526000,-895.47,0.00028493,2]
[426051276,1782131526000,-554.0,0.00028493,2]
[426051282,1782131526000,-537.51,0.00028493,2]
[426051290,1782131526000,-500.0,0.00028493,2]
[426051284,1782131526000,-805.85,0.00028493,2]